bitfinex-derivatives/quotes_SOLF0:USTF0_20260210
["timestamp","ask_amount","ask_price","bid_price","bid_amount"]
[1770740118932,3.71614605,84.771,84.693,10.6329]
[1770740119333,3.71614605,84.797,84.691,3.88565659]
[1770740119538,3.71614605,84.797,84.693,3.88565659]
[1770740120038,3.71614605,84.797,84.721,3.865981]
[1770740120235,3.71614605,84.797,84.69,36.68581087]
[1770740120236,3.71614605,84.797,84.7,120.66]
[1770740120430,3.83073554,84.789,84.691,3.865981]
[1770740120630,3.83073554,84.768,84.691,3.865981]
[1770740121030,3.83073554,84.789,84.694,3.865981]
[1770740121229,3.83073554,84.789,84.696,3.865981]
[1770740121436,3.83073554,84.819,84.701,3.865981]
[1770740121731,3.83073554,84.819,84.732,3.82185363]
[1770740121951,3.83073554,84.819,84.706,165.3742]
[1770740121952,40.80143682,84.84,84.734,3.82185363]
[1770740122131,4.11562595,84.84,84.754,3.82185363]
[1770740122529,4.11562595,84.839,84.756,3.82185363]
[1770740122737,10.6149,84.837,84.742,10.6266]
[1770740123038,4.11562595,84.836,84.733,3.82185363]
[1770740123240,4.11562595,84.819,84.733,3.82185363]
[1770740123533,4.11562595,84.8,84.715,14.45195363]
[1770740123734,4.11562595,84.8,84.715,3.82185363]
[1770740123933,4.11562595,84.784,84.693,3.82185363]
[1770740124337,4.11562595,84.807,84.693,3.82185363]
[1770740124539,4.11562595,84.829,84.734,3.82185363]
[1770740124934,4.11562595,84.829,84.694,94.24]
[1770740124935,4.11562595,84.829,84.756,3.82185363]
[1770740125134,4.11562595,84.829,84.729,3.82185363]
[1770740125339,4.11562595,84.827,84.729,3.82185363]
[1770740125535,4.11562595,84.809,84.708,94.22]
[1770740125738,4.11562595,84.809,84.641,165.5009]
[1770740125739,4.11562595,84.789,84.681,3.82185363]
[1770740125934,4.11562595,84.753,84.681,3.82185363]
[1770740126140,4.11562595,84.753,84.64,36.68581087]
[1770740126141,4.11562595,84.749,84.657,3.82185363]
[1770740126535,4.11562595,84.772,84.673,3.82185363]
[1770740126841,36.68581087,84.79,84.701,3.82185363]
[1770740126842,97.66,84.788,84.701,3.82185363]
[1770740127037,4.11562595,84.769,84.68,9.55033099]
[1770740127241,4.11562595,84.769,84.681,3.82185363]
[1770740127743,4.11562595,84.769,84.692,3.82185363]
[1770740129040,9.55033099,84.76,84.692,3.82185363]
[1770740129235,9.55033099,84.76,84.694,10.6327]
[1770740129744,9.55033099,84.78,84.71,3.82185363]
[1770740129943,4.11562595,84.779,84.71,3.82185363]
[1770740130441,4.11562595,84.845,84.721,3.82185363]
[1770740130645,9.55033099,84.81,84.721,3.82185363]
[1770740130949,4.11562595,84.809,84.724,3.82185363]
[1770740131336,10.6216,84.784,84.702,3.82185363]
[1770740131542,4.11562595,84.783,84.702,3.82185363]
[1770740132139,4.11562595,84.783,84.714,10.6302]
[1770740132343,4.11562595,84.783,84.715,3.82185363]
[1770740132748,4.11562595,84.783,84.717,10.6298]
[1770740133244,4.11562595,84.783,84.706,10.6312]
[1770740133442,165.1262,84.834,84.692,3.82185363]
[1770740133443,4.11562595,84.769,84.692,3.82185363]
[1770740133647,4.11562595,84.769,84.68,9.55033099]
[1770740133648,4.11562595,84.749,84.667,3.82185363]
[1770740133843,9.55033099,84.73,84.667,3.82185363]
[1770740134240,4.11562595,84.729,84.642,3.82185363]
[1770740134445,9.55033099,84.71,84.642,3.82185363]
[1770740134654,4.11562595,84.709,84.62,107.57218462]
[1770740134849,4.11562595,84.689,84.62,3.82185363]
[1770740135159,4.11562595,84.669,84.574,3.82185363]
[1770740135360,4.11562595,84.692,84.611,3.82185363]
[1770740135854,4.11562595,84.719,84.63,9.55033099]
[1770740136158,4.11562595,84.699,84.611,3.82185363]
[1770740136359,4.11562595,84.719,84.621,3.82185363]
[1770740136555,9.55033099,84.72,84.597,3.82185363]
[1770740136556,4.11562595,84.685,84.597,3.82185363]
[1770740136855,4.11562595,84.649,84.571,3.82185363]
[1770740137048,4.11562595,84.609,84.52,9.55033099]
[1770740137251,4.11562595,84.589,84.501,3.82185363]
[1770740137653,4.11562595,84.569,84.491,3.82185363]
[1770740138254,165.4951,84.645,84.492,3.82185363]
[1770740138255,10.647,84.581,84.492,3.82185363]
[1770740138469,4.11562595,84.592,84.511,3.82185363]
[1770740138670,97.72,84.615,84.511,3.82185363]
[1770740138671,14.76162595,84.589,84.511,3.82185363]
[1770740138866,4.11562595,84.598,84.511,3.82185363]
[1770740139067,4.11562595,84.598,84.486,3.82185363]
[1770740139263,14.76152595,84.59,84.5,3.82185363]
[1770740139460,4.11562595,84.59,84.5,3.82185363]
[1770740139768,4.11562595,84.59,84.468,165.8406]
[1770740139769,4.11562595,84.59,84.52,3.82185363]
[1770740140571,4.11562595,84.613,84.52,3.82185363]
[1770740141071,4.11562595,84.613,84.535,3.82185363]
[1770740141370,4.11562595,84.636,84.535,3.82185363]
[1770740141570,4.11562595,84.634,84.535,3.82185363]
[1770740141869,4.11562595,84.608,84.535,3.82185363]
[1770740142267,97.8,84.635,84.535,3.82185363]
[1770740142268,4.11562595,84.617,84.535,3.82185363]
[1770740142472,4.11562595,84.617,84.512,3.82185363]
[1770740143075,10.6441,84.605,84.513,3.82185363]
[1770740143370,4.11562595,84.617,84.513,3.82185363]
[1770740143570,4.11562595,84.642,84.531,3.82185363]
[1770740143773,4.11562595,84.629,84.531,3.82185363]
[1770740144274,4.11562595,84.6,84.508,98.10185363]
[1770740144463,4.11562595,84.6,84.508,3.82185363]
[1770740144666,4.11562595,84.598,84.508,3.82185363]
[1770740145576,4.11562595,84.598,84.526,3.82185363]
[1770740145768,10.6426,84.616,84.526,3.82185363]
[1770740146079,10.6431,84.612,84.531,3.82185363]
[1770740146371,4.11562595,84.615,84.531,3.82185363]
[1770740146975,4.11562595,84.615,84.548,10.6511]
[1770740147371,10.6431,84.612,84.534,10.6529]
[1770740147587,94.3,84.625,84.535,3.82185363]
[1770740148069,10.6431,84.612,84.536,10.6525]
[1770740148465,10.6431,84.612,84.537,3.82185363]
[1770740149264,4.11562595,84.623,84.543,3.82185363]
[1770740149778,4.11562595,84.647,84.543,3.82185363]
[1770740149972,36.7256434,84.65,84.521,94.32]
[1770740149973,4.03715658,84.645,84.559,14.72390811]
[1770740150379,4.03715658,84.645,84.559,4.07420811]
[1770740150583,4.03715658,84.643,84.559,4.07420811]
[1770740151375,4.03715658,84.64,84.561,10.6495]
[1770740152077,4.03715658,84.64,84.574,10.6478]
[1770740152376,4.03715658,84.64,84.574,14.72200811]
[1770740152573,98.2,84.652,84.58,4.07420811]
[1770740152777,4.03715658,84.678,84.58,4.07420811]
[1770740152979,4.03715658,84.669,84.58,4.07420811]
[1770740153284,4.03715658,84.649,84.557,4.07420811]
[1770740153773,4.03715658,84.629,84.557,4.07420811]
[1770740154278,4.03715658,84.629,84.534,4.07420811]
[1770740154674,4.03715658,84.629,84.5,36.7256434]
[1770740154675,4.03715658,84.629,84.56,4.07420811]
[1770740154874,4.03715658,84.649,84.56,4.07420811]
[1770740155181,4.03715658,84.649,84.583,10.6466]
[1770740155577,4.03715658,84.672,84.56,40.79985151]
[1770740155780,4.03715658,84.672,84.592,4.07420811]
[1770740156375,4.03715658,84.672,84.608,4.07420811]
[1770740157476,4.03715658,84.672,84.542,35.58]
[1770740157477,4.03715658,84.671,84.586,4.07420811]
[1770740157979,4.03715658,84.671,84.596,10.645]
[1770740158378,4.03715658,84.671,84.596,4.07420811]
[1770740158872,4.03715658,84.671,84.598,4.07420811]
[1770740159288,4.03715658,84.709,84.598,4.07420811]
[1770740159677,4.03715658,84.708,84.598,4.07420811]
[1770740159984,4.03715658,84.729,84.638,4.07420811]
[1770740160175,4.03715658,84.729,84.641,4.07420811]
[1770740160480,14.66275658,84.752,84.682,10.6342]
[1770740160784,36.7256434,84.78,84.673,4.07420811]
[1770740160785,4.03715658,84.771,84.673,4.07420811]
[1770740160981,9.55986751,84.77,84.673,4.07420811]
[1770740161184,4.03715658,84.749,84.651,4.07420811]
[1770740161384,4.03715658,84.747,84.651,4.07420811]
[1770740161586,4.03715658,84.74,84.662,10.6367]
[1770740161788,4.03715658,84.729,84.627,4.07420811]
[1770740162183,10.6317,84.703,84.63,4.07420811]
[1770740162386,4.03715658,84.709,84.63,4.07420811]
[1770740163688,4.03715658,84.698,84.63,4.07420811]
[1770740164085,10.6336,84.688,84.617,10.6424]
[1770740164290,4.03715658,84.687,84.609,4.07420811]
[1770740164481,4.03715658,84.679,84.609,4.07420811]
[1770740164687,14.67205658,84.677,84.609,4.07420811]
[1770740164880,4.03715658,84.676,84.609,4.07420811]
[1770740165280,10.6369,84.661,84.593,10.6454]
[1770740165582,4.03715658,84.696,84.601,4.07420811]
[1770740165780,4.03715658,84.689,84.601,4.07420811]
[1770740166182,4.03715658,84.669,84.58,13.63407562]
[1770740166380,4.03715658,84.669,84.58,4.07420811]
[1770740166590,4.03715658,84.669,84.581,4.07420811]
[1770740166789,10.6375,84.657,84.591,10.6456]
[1770740166989,4.03715658,84.669,84.592,4.07420811]
[1770740167492,10.6378,84.655,84.595,10.6451]
[1770740168089,4.03715658,84.669,84.58,9.55986751]
[1770740168090,10.6364,84.666,84.599,10.6446]
[1770740169394,10.6364,84.666,84.599,14.71880811]
[1770740169595,10.6347,84.679,84.609,4.07420811]
[1770740170287,13.59702409,84.67,84.609,4.07420811]
[1770740170488,4.03715658,84.669,84.586,4.07420811]
[1770740171091,10.6381,84.652,84.591,4.07420811]
[1770740171300,4.03715658,84.669,84.591,4.07420811]
[1770740171788,9.55986751,84.69,84.604,4.07420811]
[1770740171987,4.03715658,84.693,84.611,4.07420811]
[1770740172186,4.03715658,84.689,84.611,4.07420811]
[1770740172599,4.03715658,84.669,84.591,4.07420811]
[1770740173208,4.03715658,84.669,84.61,10.6432]
[1770740173500,4.03715658,84.669,84.591,4.07420811]
[1770740173801,4.03715658,84.689,84.591,4.07420811]
[1770740174002,10.6355,84.672,84.617,10.6424]
[1770740174387,10.6355,84.672,84.591,4.07420811]
[1770740174388,10.639,84.645,84.593,10.6454]
[1770740174697,4.03715658,84.669,84.591,4.07420811]
[1770740174894,4.03715658,84.649,84.571,4.07420811]
[1770740175099,10.6412,84.627,84.573,10.6479]
[1770740175297,10.6412,84.627,84.571,4.07420811]
[1770740175594,13.59702409,84.63,84.563,10.6492]
[1770740175799,4.03715658,84.629,84.551,4.07420811]
[1770740175994,4.03715658,84.649,84.561,4.07420811]
[1770740176199,4.03715658,84.629,84.552,4.07420811]
[1770740176591,4.03715658,84.628,84.552,4.07420811]
[1770740177202,10.6429,84.614,84.561,10.6495]
[1770740178798,10.6416,84.624,84.569,10.6484]
[1770740179606,10.6425,84.617,84.562,4.07420811]
[1770740180204,10.6425,84.617,84.563,10.6492]
[1770740180400,10.6414,84.625,84.564,3.7753598]
[1770740180602,3.79844621,84.648,84.564,3.7753598]
[1770740180902,3.79844621,84.648,84.521,21.309]
[1770740180903,3.79844621,84.668,84.587,3.7753598]
[1770740181306,10.6336,84.688,84.636,10.64]
[1770740181515,3.79844621,84.709,84.636,10.64]
[1770740181802,3.79844621,84.709,84.621,3.7753598]
[1770740182398,3.76574792,84.689,84.621,3.7753598]
[1770740182900,3.76574792,84.689,84.6,9.57266546]
[1770740183106,3.76574792,84.669,84.601,3.97391229]
[1770740183502,14.40164792,84.669,84.608,10.6435]
[1770740183698,3.76574792,84.669,84.601,3.97391229]
[1770740184214,9.57266546,84.69,84.623,10.6416]
[1770740184405,3.76574792,84.691,84.621,3.97391229]
[1770740184607,9.57266546,84.71,84.621,3.97391229]
[1770740184608,3.76574792,84.71,84.621,3.97391229]
[1770740184905,3.76574792,84.709,84.621,3.97391229]
[1770740185096,3.76574792,84.729,84.641,3.97391229]
[1770740185605,3.76574792,84.749,84.661,3.97391229]
[1770740186303,3.76574792,84.738,84.661,3.97391229]
[1770740187001,3.76574792,84.729,84.612,3.97391229]
[1770740187211,9.57266546,84.78,84.575,165.6318]
[1770740187212,3.76574792,84.709,84.621,3.97391229]
[1770740187598,3.76574792,84.703,84.621,3.97391229]
[1770740188004,3.76574792,84.701,84.633,10.6404]
[1770740188309,3.76574792,84.701,84.621,3.97391229]
[1770740188503,10.6327,84.695,84.63,10.6408]
[1770740188704,3.76574792,84.701,84.631,3.97391229]
[1770740189307,3.76574792,84.689,84.61,13.54657775]
[1770740189508,3.76574792,84.689,84.61,3.97391229]
[1770740189809,3.76574792,84.689,84.621,3.97391229]
[1770740190808,3.76574792,84.689,84.628,10.641]
[1770740191006,3.76574792,84.677,84.599,3.97391229]
[1770740191411,3.76574792,84.697,84.618,3.97391229]
[1770740191913,3.76574792,84.697,84.643,10.6391]
[1770740192105,3.76574792,84.697,84.618,3.97391229]
[1770740192503,10.87394479,84.732,84.631,3.97391229]
[1770740192709,3.76574792,84.759,84.671,3.97391229]
[1770740193110,3.76574792,84.759,84.681,3.97391229]
[1770740193402,3.76574792,84.749,84.656,3.97391229]
[1770740193603,3.76574792,84.737,84.656,3.97391229]
[1770740193809,3.76574792,84.758,84.671,3.97391229]
[1770740194007,3.76574792,84.758,84.681,10.6343]
[1770740194309,3.76574792,84.739,84.671,3.97391229]
[1770740194810,10.6275,84.736,84.65,13.54657775]
[1770740195008,3.76574792,84.735,84.66,10.6369]
[1770740195409,3.76574792,84.735,84.651,3.97391229]
[1770740195909,3.76574792,84.719,84.651,3.97391229]
[1770740196119,3.76574792,84.707,84.631,10.6406]
[1770740196309,3.76574792,84.699,84.631,10.6406]
[1770740196809,3.76574792,84.699,84.61,9.57266546]
[1770740196810,105.13394479,84.753,84.651,3.97391229]
[1770740197014,9.57266546,84.74,84.651,3.97391229]
[1770740197214,3.76574792,84.739,84.651,3.97391229]
[1770740198008,10.6295,84.72,84.651,3.97391229]
[1770740198214,3.76574792,84.719,84.651,3.97391229]
[1770740198722,10.6298,84.718,84.652,10.638]
[1770740198917,3.76574792,84.719,84.652,10.638]
[1770740199519,10.6299,84.717,84.652,10.638]
[1770740199720,3.76574792,84.719,84.631,3.97391229]
[1770740200117,3.76574792,84.714,84.631,3.97391229]
[1770740200625,3.76574792,84.714,84.639,3.97391229]
[1770740200926,3.76574792,84.73,84.651,3.97391229]
[1770740201219,10.6301,84.716,84.651,3.97391229]
[1770740202520,3.76574792,84.716,84.652,10.638]
[1770740202823,3.76574792,84.716,84.631,3.97391229]
[1770740203224,3.76574792,84.716,84.641,3.97391229]
[1770740204925,10.6317,84.703,84.641,14.61331229]
[1770740205122,3.76574792,84.716,84.641,3.97391229]
[1770740205523,10.6304,84.714,84.651,10.6381]
[1770740205825,14.39614792,84.714,84.651,10.6381]
[1770740206025,9.57266546,84.72,84.642,10.6393]
[1770740206026,3.76574792,84.709,84.642,10.6393]
[1770740206218,3.76574792,84.709,84.643,3.97391229]
[1770740207121,3.76574792,84.699,84.623,3.97391229]
[1770740207628,3.76574792,84.688,84.629,10.6409]
[1770740207829,3.76574792,84.688,84.623,3.97391229]
[1770740208420,3.76574792,84.677,84.599,3.97391229]
[1770740209026,3.76574792,84.677,84.606,3.97391229]
[1770740209523,3.76574792,84.674,84.611,10.6431]
[1770740209729,3.76574792,84.659,84.581,3.97391229]
[1770740209923,10.6383,84.651,84.585,10.6464]
[1770740210530,10.6392,84.643,84.581,3.97391229]
[1770740210730,3.88468366,84.639,84.561,3.97083408]
[1770740211126,9.57266546,84.62,84.561,3.97083408]
[1770740211332,3.88468366,84.638,84.561,3.97083408]
[1770740211526,13.45734912,84.62,84.561,3.97083408]
[1770740211722,10.6423,84.618,84.561,3.97083408]
[1770740212220,3.88468366,84.638,84.562,3.97083408]
[1770740212425,3.88468366,84.619,84.543,3.97083408]
[1770740213726,10.6432,84.611,84.545,3.97083408]
[1770740214129,3.88468366,84.61,84.545,3.97083408]
[1770740214526,3.88468366,84.595,84.527,10.6537]
[1770740214925,3.88468366,84.595,84.525,3.97083408]
[1770740215436,3.88468366,84.589,84.525,3.97083408]
[1770740216135,3.88468366,84.559,84.479,3.97083408]
[1770740216332,3.88468366,84.559,84.484,3.97083408]
[1770740217127,3.88468366,84.559,84.486,3.97083408]
[1770740217128,14.53448366,84.559,84.486,3.97083408]
[1770740217328,3.88468366,84.558,84.486,3.97083408]
[1770740217728,14.53458366,84.558,84.487,10.6587]
[1770740217935,14.53458366,84.558,84.488,3.97083408]
[1770740218230,3.88468366,84.558,84.471,3.97083408]
[1770740218425,10.6527,84.536,84.471,3.97083408]
[1770740218632,3.88468366,84.535,84.471,3.97083408]
[1770740219032,3.88468366,84.533,84.471,3.97083408]
[1770740219534,9.57266546,84.54,84.471,3.97083408]
[1770740219936,3.88468366,84.552,84.473,3.97083408]
[1770740220331,3.88468366,84.574,84.481,3.97083408]
[1770740220530,9.57266546,84.55,84.485,3.97083408]
[1770740220832,3.88468366,84.549,84.451,3.97083408]
[1770740221031,3.88468366,84.547,84.469,3.97083408]
[1770740221428,3.88468366,84.547,84.45,9.57266546]
[1770740221429,3.88468366,84.529,84.45,9.57266546]
[1770740221633,3.88468366,84.529,84.448,3.97083408]
[1770740222236,10.6542,84.524,84.451,3.97083408]
[1770740222632,3.88468366,84.544,84.451,3.97083408]
[1770740222832,3.88468366,84.544,84.44,94.34]
[1770740222833,10.6513,84.547,84.481,3.97083408]
[1770740223027,3.88468366,84.565,84.481,3.97083408]
[1770740223429,10.6511,84.549,84.485,3.97083408]
[1770740223634,3.88468366,84.565,84.485,3.97083408]
[1770740223936,3.88468366,84.536,84.461,3.97083408]
[1770740224138,165.6077,84.588,84.442,3.97083408]
[1770740224139,3.88468366,84.529,84.442,3.97083408]
[1770740224743,10.6541,84.525,84.454,3.97083408]
[1770740224939,3.88468366,84.529,84.454,3.97083408]
[1770740225341,3.88468366,84.529,84.433,94.36]
[1770740225342,3.88468366,84.529,84.456,3.97083408]
[1770740225642,21.2954,84.576,84.491,3.97083408]
[1770740225643,3.88468366,84.576,84.491,3.97083408]
[1770740225836,3.88468366,84.576,84.502,3.97083408]
[1770740226038,3.88468366,84.576,84.483,3.97083408]
[1770740226435,10.6488,84.567,84.492,3.97083408]
[1770740226634,3.88468366,84.576,84.492,3.97083408]
[1770740227039,14.53518366,84.553,84.494,10.6579]
[1770740227233,3.88468366,84.553,84.492,3.97083408]
[1770740227435,3.88468366,84.573,84.492,3.97083408]
[1770740227634,3.88468366,84.573,84.515,10.6552]
[1770740227837,3.88468366,84.573,84.512,3.97083408]
[1770740228044,3.88468366,84.573,84.514,10.6553]
[1770740228947,3.88468366,84.594,84.524,3.97083408]
[1770740230241,3.88468366,84.594,84.49,9.59628897]
[1770740230242,3.88468366,84.579,84.491,3.97083408]
[1770740230855,3.88468366,84.579,84.524,10.6541]
[1770740231856,3.88468366,84.579,84.532,10.653]
[1770740232040,3.88468366,84.579,84.51,3.97083408]
[1770740233148,9.59628897,84.59,84.49,9.59628897]
[1770740233149,9.59628897,84.59,84.527,14.62453408]
[1770740233448,9.59628897,84.59,84.507,3.97083408]
[1770740233449,3.88468366,84.589,84.507,3.97083408]
[1770740233645,3.88468366,84.587,84.515,10.6552]
[1770740233851,3.88468366,84.587,84.507,3.97083408]
[1770740234349,9.59628897,84.59,84.507,3.97083408]
[1770740234350,3.88468366,84.576,84.507,3.97083408]
[1770740235050,3.88468366,84.572,84.507,3.97083408]
[1770740235545,9.59628897,84.59,84.49,13.56712305]
[1770740235546,3.88468366,84.569,84.49,13.56712305]
[1770740235745,3.88468366,84.569,84.491,3.97083408]
[1770740236652,10.6495,84.562,84.497,10.6574]
[1770740236855,3.88468366,84.561,84.491,3.97083408]
[1770740238250,3.88468366,84.545,84.471,3.97083408]
[1770740238442,3.88468366,84.564,84.471,3.97083408]
[1770740238649,3.88468366,84.564,84.426,165.9235]
[1770740238650,3.88468366,84.564,84.491,3.97083408]
[1770740239641,3.88468366,84.564,84.492,3.97083408]
[1770740239954,3.96146344,84.559,84.492,3.97083408]
[1770740240357,10.6517,84.544,84.492,3.97083408]
[1770740240554,3.96146344,84.559,84.492,3.97083408]
[1770740241054,10.6503,84.555,84.494,3.78623215]
[1770740241261,3.96146344,84.559,84.494,3.78623215]
[1770740241942,4.0921346,84.578,84.503,3.87797375]
[1770740242143,4.0921346,84.569,84.49,9.59628897]
[1770740242343,10.6495,84.561,84.5,10.6571]
[1770740242549,4.0921346,84.569,84.501,3.87797375]
[1770740242860,4.0921346,84.589,84.501,3.87797375]
[1770740243153,4.0921346,84.561,84.501,3.87797375]
[1770740243357,4.0921346,84.589,84.501,3.87797375]
[1770740243954,4.0921346,84.561,84.501,3.87797375]
[1770740244352,4.0921346,84.58,84.501,3.87797375]
[1770740244552,10.6484,84.57,84.51,14.53387375]
[1770740244855,10.6484,84.57,84.511,3.87797375]
[1770740245754,10.6484,84.57,84.521,10.6545]
[1770740245961,9.59628897,84.59,84.522,3.87797375]
[1770740246260,4.0921346,84.6,84.522,3.87797375]
[1770740246561,4.0921346,84.589,84.523,10.6542]
[1770740246956,10.6491,84.564,84.522,3.87797375]
[1770740247753,10.6481,84.573,84.522,3.87797375]
[1770740247958,4.0921346,84.589,84.522,3.87797375]
[1770740248664,10.6479,84.574,84.524,10.6541]
[1770740248864,4.0921346,84.589,84.525,3.87797375]
[1770740249559,4.0921346,84.606,84.541,3.87797375]
[1770740249766,4.0921346,84.629,84.541,3.87797375]
[1770740250461,4.0921346,84.629,84.55,9.59628897]
[1770740250762,10.6437,84.607,84.554,10.6502]
[1770740251164,10.6437,84.607,84.555,3.87797375]
[1770740251555,4.0921346,84.629,84.557,3.87797375]
[1770740252270,4.0921346,84.629,84.558,3.87797375]
[1770740252669,4.0921346,84.599,84.521,3.87797375]
[1770740253151,10.6457,84.591,84.537,10.6524]
[1770740253357,4.0921346,84.599,84.521,3.87797375]
[1770740253557,4.0921346,84.598,84.521,3.87797375]
[1770740254066,4.0921346,84.598,84.533,3.87797375]
[1770740254264,4.0921346,84.616,84.533,3.87797375]
[1770740255469,4.0921346,84.616,84.541,3.87797375]
[1770740255667,4.0921346,84.616,84.546,3.87797375]
[1770740256766,4.0921346,84.616,84.548,3.87797375]
[1770740256968,4.0921346,84.609,84.531,3.87797375]
[1770740257361,4.0921346,84.607,84.531,3.87797375]
[1770740257560,4.0921346,84.589,84.51,13.47426272]
[1770740257869,4.0921346,84.588,84.511,3.87797375]
[1770740258267,10.6471,84.58,84.519,10.6546]
[1770740258459,4.0921346,84.579,84.511,3.87797375]
[1770740258865,4.0921346,84.579,84.513,3.87797375]
[1770740259669,4.0921346,84.577,84.513,3.87797375]
[1770740260272,4.0921346,84.569,84.5,10.6571]
[1770740260475,4.0921346,84.569,84.496,3.87797375]
[1770740260970,10.85086091,84.589,84.51,3.87797375]
[1770740260971,4.0921346,84.587,84.51,3.87797375]
[1770740261370,4.0921346,84.579,84.51,3.87797375]
[1770740261878,4.0921346,84.577,84.511,10.6557]
[1770740262777,4.0921346,84.575,84.512,3.87797375]
[1770740262978,13.68842357,84.57,84.512,3.87797375]
[1770740263281,4.0921346,84.57,84.513,3.87797375]
[1770740263577,4.0921346,84.587,84.513,3.87797375]
[1770740264174,10.6464,84.586,84.531,14.53127375]
[1770740264372,10.6464,84.586,84.532,3.87797375]
[1770740264767,10.6464,84.586,84.535,10.6527]
[1770740265478,9.59628897,84.61,84.544,10.6515]
[1770740265479,10.6452,84.596,84.544,10.6515]
[1770740265879,4.0921346,84.604,84.558,10.6498]
[1770740266080,4.0921346,84.604,84.497,14.49850166]
[1770740266081,4.0921346,84.626,84.559,3.87797375]
[1770740266876,4.0921346,84.619,84.532,94.38]
[1770740267076,4.0921346,84.619,84.533,3.87797375]
[1770740267679,4.0921346,84.599,84.54,10.6521]
[1770740267874,4.0921346,84.599,84.533,3.87797375]
[1770740268670,4.0921346,84.599,84.515,3.87797375]
[1770740269477,4.0921346,84.599,84.54,10.6521]
[1770740270085,4.09332258,84.597,84.532,10.6531]
[1770740270279,98.62,84.608,84.533,3.75751572]
[1770740270484,4.09332258,84.615,84.533,3.75751572]
[1770740271080,4.09332258,84.613,84.533,3.75751572]
[1770740271388,4.09332258,84.599,84.511,3.75751572]
[1770740271586,4.09332258,84.583,84.511,3.75751572]
[1770740273779,4.09332258,84.581,84.527,10.6537]
[1770740274685,10.6471,84.58,84.527,10.6537]
[1770740275493,10.6474,84.578,84.527,10.6537]
[1770740275686,4.09332258,84.577,84.527,10.6537]
[1770740275893,4.09332258,84.577,84.517,10.6549]
[1770740276093,10.6485,84.569,84.511,3.75751572]
[1770740276590,4.09332258,84.577,84.524,10.6541]
[1770740276794,4.09332258,84.577,84.524,14.41161572]
[1770740277092,10.6496,84.56,84.524,3.75751572]
[1770740277290,4.09332258,84.577,84.491,3.75751572]
[1770740277695,10.654,84.526,84.471,3.75751572]
[1770740278287,4.09332258,84.532,84.471,3.75751572]
[1770740278288,10.655,84.518,84.471,3.75751572]
[1770740278894,10.6563,84.507,84.471,3.75751572]
[1770740279091,10.6563,84.507,84.453,3.75751572]
[1770740279999,10.6574,84.499,84.453,3.75751572]
[1770740280200,4.09332258,84.515,84.453,3.75751572]
[1770740280399,9.59628897,84.52,84.453,3.75751572]
[1770740280899,10.6549,84.519,84.463,3.75751572]
[1770740281200,4.09332258,84.532,84.463,3.75751572]
[1770740281994,4.09332258,84.532,84.464,3.75751572]
[1770740282191,35.58,84.569,84.435,94.4]
[1770740282192,4.09332258,84.519,84.447,3.75751572]
[1770740282790,10.6581,84.493,84.447,3.75751572]
[1770740282991,4.09332258,84.499,84.43,3.75751572]
[1770740283900,4.09332258,84.499,84.451,10.6633]
[1770740284200,4.09332258,84.499,84.43,3.75751572]
[1770740284400,4.09332258,84.499,84.431,3.75751572]
[1770740284696,4.09332258,84.519,84.453,3.75751572]
[1770740285493,4.09332258,84.498,84.436,3.75751572]
[1770740287702,4.09332258,84.498,84.438,10.665]
[1770740287898,4.09332258,84.498,84.42,9.61194105]
[1770740287899,4.09332258,84.498,84.439,3.75751572]
[1770740288807,4.09332258,84.498,84.447,10.6638]
[1770740289010,4.09332258,84.515,84.448,3.75751572]
[1770740289196,9.61194105,84.52,84.465,3.75751572]
[1770740289698,4.09332258,84.529,84.468,10.6611]
[1770740289898,10.6535,84.53,84.44,9.61194105]
[1770740289899,4.09332258,84.519,84.441,3.75751572]
[1770740290304,4.09332258,84.519,84.457,3.75751572]
[1770740290706,4.09332258,84.559,84.471,3.75751572]
[1770740291407,4.09332258,84.579,84.513,14.41301572]
[1770740291606,4.09332258,84.579,84.513,3.75751572]
[1770740291808,4.09332258,84.579,84.491,3.75751572]
[1770740292104,4.09332258,84.578,84.515,10.6552]
[1770740292799,4.09332258,84.578,84.509,3.75751572]
[1770740293800,4.09332258,84.578,84.51,10.6558]
[1770740294001,4.09332258,84.569,84.491,3.75751572]
[1770740294202,4.09332258,84.569,84.501,3.75751572]
[1770740294799,4.09332258,84.569,84.508,3.75751572]
[1770740295510,4.09332258,84.605,84.526,3.75751572]
[1770740295810,4.09332258,84.589,84.504,3.75751572]
[1770740296106,4.09332258,84.571,84.508,10.6561]
[1770740296305,4.09332258,84.569,84.508,10.6561]
[1770740296506,4.09332258,84.566,84.496,10.6576]
[1770740297009,4.09332258,84.566,84.496,14.41511572]
[1770740297708,4.09332258,84.564,84.496,3.75751572]
[1770740298407,4.09332258,84.561,84.496,3.75751572]
[1770740298714,4.09332258,84.561,84.5,3.75751572]
[1770740299310,4.09332258,84.561,84.51,14.41341572]